bitfinex/quotes_SOLUSD_20230105
["timestamp","ask_amount","ask_price","bid_price","bid_amount"]
[1672884312977,20.0,13.157,13.154,6.37e-05]
[1672884313204,98.8211836,13.157,13.154,6.37e-05]
[1672884313515,21.7811836,13.156,13.154,6.37e-05]
[1672884313736,40.0,13.155,13.154,6.37e-05]
[1672884313924,97.05,13.155,13.154,6.37e-05]
[1672884314130,176.31040431,13.155,13.154,6.37e-05]
[1672884317066,176.31040431,13.155,13.133,57.14]
[1672884317067,20.0,13.154,13.133,477.765]
[1672884317293,77.47922071,13.154,13.133,477.765]
[1672884317500,57.06,13.153,13.133,477.765]
[1672884317715,20.0,13.152,13.134,20.0]
[1672884317916,20.0,13.152,13.138,57.12]
[1672884318137,21.7811836,13.153,13.138,57.12]
[1672884318355,21.7811836,13.153,13.139,252.2914]
[1672884318561,21.7811836,13.153,13.14,20.0]
[1672884318748,21.7811836,13.153,13.14,57.11]
[1672884318955,20.0,13.152,13.139,232.2914]
[1672884319171,77.06,13.152,13.137,107.9572682]
[1672884319394,99.26040431,13.151,13.137,107.9572682]
[1672884319609,20.0,13.15,13.137,107.9572682]
[1672884319823,20.0,13.149,13.137,107.9572682]
[1672884320040,117.62299796,13.149,13.137,107.9572682]
[1672884320359,139.00496085,13.148,13.137,107.9572682]
[1672884320669,196.48418156,13.148,13.137,107.9572682]
[1672884320984,139.40418156,13.147,13.137,107.9572682]
[1672884321184,20.0,13.146,13.137,107.9572682]
[1672884321401,196.49418156,13.146,13.137,107.9572682]
[1672884321709,139.40418156,13.145,13.137,107.9572682]
[1672884321920,20.0,13.144,13.133,312.0]
[1672884322135,20.0,13.143,13.128,75.0591475]
[1672884322337,79.26040431,13.143,13.128,75.0591475]
[1672884322539,57.1,13.142,13.128,75.0591475]
[1672884322758,20.0,13.141,13.128,75.0591475]
[1672884322970,20.0,13.14,13.128,75.0591475]
[1672884323176,174.73299796,13.14,13.128,75.0591475]
[1672884323378,156.37040431,13.14,13.128,75.0591475]
[1672884323590,70.14377725,13.139,13.128,4.75e-05]
[1672884323804,20.0,13.138,13.128,4.75e-05]
[1672884324011,20.0,13.137,13.128,4.75e-05]
[1672884324339,141.76151489,13.137,13.128,4.75e-05]
[1672884324529,97.27377725,13.136,13.128,4.75e-05]
[1672884324747,40.0,13.135,13.128,4.75e-05]
[1672884324948,161.76151489,13.135,13.128,4.75e-05]
[1672884325166,138.75773764,13.134,13.128,4.75e-05]
[1672884325600,20.0,13.132,13.128,4.75e-05]
[1672884326003,59.83655404,13.133,13.128,4.75e-05]
[1672884326215,57.14,13.134,13.128,4.75e-05]
[1672884326423,80.14377725,13.135,13.128,4.75e-05]
[1672884327066,117.56060215,13.14,13.128,4.75e-05]
[1672884327257,117.56060215,13.14,13.129,57.16]
[1672884327591,20.0,13.147,13.13,20.0]
[1672884327802,57.09,13.146,13.13,128.5984]
[1672884327987,20.0,13.145,13.131,57.15]
[1672884328323,41.7811836,13.145,13.13,108.5984]
[1672884328517,135.39537098,13.144,13.13,108.5984]
[1672884328729,20.0,13.143,13.128,4.75e-05]
[1672884328950,98.29537098,13.143,13.128,4.75e-05]
[1672884329161,78.8811836,13.142,13.128,4.75e-05]
[1672884329381,135.39537098,13.142,13.128,4.75e-05]
[1672884329574,20.0,13.14,13.128,4.75e-05]
[1672884330103,78.9011836,13.139,13.128,4.75e-05]
[1672884330319,20.0,13.138,13.128,4.75e-05]
[1672884330521,20.0,13.137,13.128,4.75e-05]
[1672884330726,98.9111836,13.137,13.128,4.75e-05]
[1672884330948,20.0,13.136,13.128,4.75e-05]
[1672884331375,57.13,13.135,13.128,4.75e-05]
[1672884331581,20.0,13.133,13.128,4.75e-05]
[1672884331991,77.14,13.133,13.128,4.75e-05]
[1672884332644,20.0,13.134,13.128,4.75e-05]
[1672884332838,20.0,13.135,13.128,4.75e-05]
[1672884333587,20.0,13.134,13.128,4.75e-05]
[1672884334000,20.0,13.135,13.128,4.75e-05]
[1672884334736,77.13,13.136,13.128,4.75e-05]
[1672884335368,77.13,13.136,13.125,104.70197625]
[1672884335561,20.0,13.153,13.126,20.0]
[1672884335776,20.0,13.144,13.126,77.17]
[1672884335988,41.7811836,13.144,13.126,77.17]
[1672884336199,57.1,13.143,13.127,20.0]
[1672884336411,78.8811836,13.143,13.127,20.0]
[1672884336621,57.1,13.143,13.127,20.0]
[1672884336844,21.7811836,13.142,13.127,20.0]
[1672884337058,21.7811836,13.142,13.128,117.4899]
[1672884337262,57.11,13.141,13.129,20.0]
[1672884337787,57.1,13.144,13.129,20.0]
[1672884338001,78.8811836,13.144,13.129,20.0]
[1672884338951,21.7811836,13.143,13.129,20.0]
[1672884339144,21.7811836,13.143,13.13,312.0]
[1672884339349,57.1,13.142,13.131,20.0]
[1672884340193,21.7811836,13.143,13.131,20.0]
[1672884340837,21.7811836,13.143,13.133,20.0]
[1672884341061,57.1,13.142,13.133,20.0]
[1672884341273,21.7811836,13.143,13.133,20.0]
[1672884341580,20.0,13.152,13.133,20.0]
[1672884341581,57.08,13.148,13.133,20.0]
[1672884341794,20.0,13.147,13.135,20.0]
[1672884342201,57.09,13.146,13.135,20.0]
[1672884342406,20.0,13.145,13.135,20.0]
[1672884342623,57.09,13.146,13.135,20.0]
[1672884342836,57.06,13.152,13.138,20.0]
[1672884343057,57.06,13.152,13.138,559.2]
[1672884343254,57.04,13.156,13.139,20.0]
[1672884343984,57.04,13.157,13.14,57.11]
[1672884344195,57.05,13.155,13.14,94.04]
[1672884344415,57.03,13.159,13.141,20.0]
[1672884344837,57.03,13.159,13.143,20.0]
[1672884345690,57.03,13.159,13.144,78.8811836]
[1672884345993,57.03,13.159,13.144,306.0811836]
[1672884346212,57.01,13.163,13.145,41.7811836]
[1672884346420,57.01,13.163,13.146,20.0]
[1672884346633,57.01,13.163,13.146,77.09]
[1672884346845,57.01,13.164,13.146,77.09]
[1672884347039,20.0,13.163,13.146,113.5999]
[1672884347362,20.0,13.162,13.146,113.5999]
[1672884347574,20.0,13.161,13.146,113.5999]
[1672884347766,104.54147138,13.161,13.146,113.5999]
[1672884347975,161.57147138,13.16,13.146,113.5999]
[1672884348187,20.0,13.159,13.146,113.5999]
[1672884348398,20.0,13.158,13.146,113.5999]
[1672884348613,20.0,13.157,13.146,113.5999]
[1672884348836,20.0,13.156,13.146,113.5999]
[1672884349037,20.0,13.155,13.146,113.5999]
[1672884349238,69.74708071,13.155,13.146,113.5999]
[1672884349446,77.05,13.154,13.146,113.5999]
[1672884349876,57.05,13.154,13.146,113.5999]
[1672884352186,108.9375774,13.154,13.146,113.5999]
[1672884352398,20.0,13.153,13.146,113.5999]
[1672884352823,106.80708071,13.152,13.146,113.5999]
[1672884354103,57.06,13.152,13.146,113.5999]
[1672884355464,108.9475774,13.152,13.146,113.5999]
[1672884355672,20.0,13.151,13.146,113.5999]
[1672884356202,128.9575774,13.15,13.146,113.5999]
[1672884356410,20.0,13.149,13.146,113.5999]
[1672884356743,20.0,13.148,13.135,115.2086]
[1672884356923,77.08,13.148,13.136,20.0]
[1672884358414,98.8611836,13.148,13.136,20.0]
[1672884358730,98.8611836,13.148,13.136,332.0]
[1672884358924,77.08,13.148,13.136,332.0]
[1672884360387,77.08,13.148,13.136,559.2]
[1672884360603,20.0,13.148,13.136,559.2]
[1672884361869,20.0,13.148,13.136,332.0]
[1672884362086,57.08,13.147,13.136,332.0]
[1672884362290,20.0,13.146,13.136,332.0]
[1672884362618,51.8875774,13.15,13.137,20.0]
[1672884362934,51.8875774,13.15,13.138,20.0]
[1672884363246,20.0,13.154,13.14,20.0]
[1672884363432,108.9475774,13.152,13.142,20.0]
[1672884363647,51.8875774,13.152,13.142,20.0]
[1672884364273,57.05,13.154,13.142,20.0]
[1672884364693,108.9275774,13.157,13.142,20.0]
[1672884365541,20.0,13.156,13.144,227.2]
[1672884365748,20.0,13.156,13.144,539.2]
[1672884365966,20.0,13.156,13.145,20.0]
[1672884366397,20.0,13.156,13.146,115.6578]
[1672884366599,20.0,13.156,13.147,20.0]
[1672884366810,20.0,13.156,13.146,115.6578]
[1672884367230,40.0,13.159,13.146,115.6578]
[1672884367440,57.04,13.158,13.146,115.6578]
[1672884367649,20.0,13.157,13.146,342.8578]
[1672884368069,20.0,13.157,13.147,20.0]
[1672884368803,263.3,13.162,13.147,20.0]
[1672884368804,57.03,13.16,13.147,20.0]
[1672884369018,57.02,13.161,13.15,20.0]
[1672884369221,51.8875774,13.168,13.15,20.0]
[1672884369426,21.7811836,13.166,13.15,20.0]
[1672884369850,108.8975774,13.165,13.151,227.2]
[1672884370072,108.8975774,13.165,13.152,20.0]
[1672884370274,97.3975774,13.165,13.152,20.0]
[1672884370805,56.99,13.168,13.154,20.0]
[1672884371016,56.99,13.168,13.155,112.2911]
[1672884371341,21.7811836,13.169,13.156,20.0]
[1672884371656,56.97,13.173,13.157,227.2]
[1672884371849,56.97,13.173,13.158,20.0]
[1672884372202,108.8575774,13.174,13.158,20.0]
[1672884373639,56.97,13.174,13.159,227.2]
[1672884373839,56.97,13.174,13.159,312.0]
[1672884374058,40.0,13.173,13.16,109.6692]
[1672884374380,96.97,13.173,13.159,312.0]
[1672884374600,73.668761,13.172,13.159,312.0]
[1672884374803,20.0,13.171,13.155,112.2911]
[1672884374996,56.98,13.171,13.155,112.2911]
[1672884375210,40.0,13.17,13.155,112.2911]
[1672884375418,20.0,13.169,13.155,112.2911]
[1672884375636,20.0,13.168,13.155,112.2911]
[1672884375970,20.0,13.168,13.145,57.09]
[1672884375971,159.17396807,13.168,13.145,57.09]
[1672884376189,169.39623238,13.167,13.145,109.7126]
[1672884376387,20.0,13.166,13.145,109.7126]
[1672884376613,204.61504878,13.166,13.145,109.7126]
[1672884376923,147.61504878,13.165,13.145,109.7126]
[1672884377130,20.0,13.164,13.145,109.7126]
[1672884377343,20.0,13.163,13.145,109.7126]
[1672884377536,20.0,13.162,13.145,109.7126]
[1672884377742,77.02,13.162,13.145,109.7126]
[1672884377957,20.0,13.161,13.145,109.7126]
[1672884378169,20.0,13.16,13.145,109.7126]
[1672884378378,20.0,13.159,13.145,109.7126]
[1672884378609,20.0,13.158,13.145,109.7126]
[1672884378804,77.04,13.158,13.145,109.7126]
[1672884379224,77.04,13.158,13.145,421.7126]
[1672884380602,77.04,13.158,13.145,109.7126]
[1672884382078,20.0,13.158,13.145,109.7126]
[1672884382394,20.0,13.158,13.147,20.0]
[1672884382593,20.0,13.158,13.145,109.7126]
[1672884383015,20.0,13.158,13.147,20.0]
[1672884383548,20.0,13.158,13.145,109.7126]
[1672884383737,20.0,13.158,13.147,312.0]
[1672884385007,20.0,13.158,13.148,20.0]
[1672884385759,20.0,13.158,13.147,539.2]
[1672884385953,47.3895774,13.16,13.147,539.2]
[1672884385954,20.0,13.159,13.147,539.2]
[1672884386493,20.0,13.159,13.148,20.0]
[1672884387343,20.0,13.159,13.147,539.2]
[1672884387735,20.0,13.159,13.148,20.0]
[1672884387951,20.0,13.161,13.148,20.0]
[1672884388161,20.0,13.16,13.148,20.0]
[1672884388387,77.03,13.16,13.148,20.0]
[1672884388920,77.03,13.16,13.147,539.2]
[1672884389108,20.0,13.16,13.147,539.2]
[1672884389319,20.0,13.161,13.147,539.2]
[1672884389534,20.0,13.161,13.148,20.0]
[1672884389868,57.03,13.16,13.148,20.0]
[1672884390172,20.0,13.159,13.148,20.0]
[1672884390583,57.02,13.161,13.148,20.0]
[1672884390783,846.64299928,13.192,13.15,20.0]
[1672884390784,57.01,13.163,13.15,20.0]
[1672884390996,57.01,13.164,13.15,20.0]
[1672884391202,128.25170277,13.166,13.15,20.0]
[1672884391419,57.01,13.163,13.151,114.6792]
[1672884391643,101.2695774,13.165,13.152,20.0]
[1672884391855,57.02,13.162,13.151,114.6792]
[1672884392046,20.0,13.163,13.151,114.6792]
[1672884392478,150.4673121,13.164,13.152,20.0]
[1672884392788,150.4673121,13.164,13.153,109.2238]
[1672884393639,20.0,13.163,13.153,109.2238]
[1672884394049,57.02,13.162,13.153,109.2238]
[1672884395117,44.2695774,13.161,13.148,20.0]
[1672884395427,34.79439067,13.165,13.154,20.0]
[1672884395645,77.01,13.164,13.154,20.0]
[1672884396046,77.01,13.164,13.153,425.4539]
[1672884396463,77.01,13.164,13.153,113.4539]
[1672884397008,20.0,13.164,13.154,20.0]
[1672884397429,20.0,13.166,13.154,20.0]
[1672884397734,20.0,13.166,13.156,20.0]
[1672884398357,44.2695774,13.171,13.156,20.0]
[1672884398566,44.2695774,13.171,13.159,20.0]
[1672884398799,56.97,13.174,13.16,119.9731]
[1672884399104,56.97,13.174,13.16,347.1731]
[1672884399320,56.96,13.175,13.16,347.1731]
[1672884399506,56.96,13.175,13.161,345.1088]
[1672884399926,63.31891074,13.174,13.161,117.9088]
[1672884400150,20.0,13.173,13.16,431.9731]
[1672884400355,38.91747799,13.172,13.16,312.0]
[1672884400566,20.0,13.17,13.154,117.9088]
[1672884400771,20.0,13.169,13.154,117.9088]
[1672884401003,20.0,13.168,13.154,117.9088]
[1672884401213,20.0,13.167,13.154,117.9088]
[1672884401407,83.31891074,13.167,13.154,117.9088]
[1672884401619,84.08090761,13.166,13.154,117.9088]
[1672884401938,20.0,13.164,13.154,117.9088]
[1672884402260,63.31891074,13.164,13.154,117.9088]
[1672884402470,38.91747799,13.178,13.155,20.0]
[1672884402672,20.0,13.176,13.157,20.0]
[1672884402881,91.14079205,13.173,13.157,20.0]
[1672884403104,91.14079205,13.173,13.158,57.03]
[1672884403105,20.0,13.172,13.158,57.03]
[1672884403513,20.0,13.172,13.16,539.2]
[1672884403514,57.83127181,13.172,13.16,539.2]
[1672884403730,57.83127181,13.172,13.161,20.0]
[1672884403939,57.83127181,13.172,13.161,57.02]
[1672884404138,57.83127181,13.172,13.161,77.02]
[1672884404348,57.83127181,13.172,13.161,416.9498]
[1672884404566,57.83127181,13.172,13.162,20.0]
[1672884404781,57.83127181,13.172,13.161,189.7498]
[1672884404983,57.83127181,13.172,13.161,169.7498]
[1672884407295,57.83127181,13.172,13.161,112.7298]
[1672884407505,106.67233985,13.172,13.161,112.7298]
[1672884409199,106.67233985,13.172,13.165,312.0]
[1672884409947,148.97206386,13.172,13.165,312.0]
[1672884413401,170.75324746,13.172,13.16,111.2395]
[1672884414234,20.0,13.171,13.16,111.2395]
[1672884414665,106.67233985,13.17,13.16,111.2395]
[1672884416330,106.67233985,13.17,13.164,312.0]
[1672884417515,57.83127181,13.17,13.164,312.0]
[1672884417717,106.67233985,13.17,13.164,312.0]
[1672884418120,57.83127181,13.17,13.164,312.0]
[1672884419492,48.84106804,13.169,13.164,312.0]
[1672884421930,57.83127181,13.168,13.164,312.0]
[1672884425709,106.67233985,13.168,13.164,312.0]
[1672884426238,57.83127181,13.168,13.164,312.0]
[1672884428326,57.83127181,13.168,13.161,111.2706]
[1672884428863,106.67233985,13.168,13.161,111.2706]
[1672884429062,141.08090761,13.167,13.14,59.22]
[1672884429274,20.0,13.166,13.147,116.2964]
[1672884429493,20.0,13.164,13.148,20.0]
[1672884429905,148.15079205,13.163,13.148,20.0]
[1672884430123,20.0,13.162,13.148,20.0]
[1672884430330,111.14079205,13.162,13.148,20.0]
[1672884430523,148.16079205,13.161,13.148,20.0]
[1672884430740,20.0,13.16,13.147,116.2964]
[1672884430944,168.97206386,13.16,13.146,115.6578]
[1672884431175,227.78324746,13.159,13.147,227.2]
[1672884431491,42.29972401,13.159,13.148,20.0]
[1672884432022,42.29972401,13.159,13.148,139.0412]
[1672884432208,42.29972401,13.159,13.148,366.2412]
[1672884435465,42.29972401,13.159,13.149,20.0]
[1672884438631,185.46352345,13.163,13.149,20.0]
[1672884438851,57.83127181,13.163,13.15,227.2]
[1672884439034,42.29972401,13.165,13.15,227.2]
[1672884439366,20.0,13.164,13.151,20.0]
[1672884439577,20.0,13.164,13.153,312.0]
[1672884439892,57.01,13.163,13.153,312.0]
[1672884440095,78.7911836,13.163,13.154,20.0]
[1672884440411,20.0,13.161,13.153,312.0]
[1672884440625,20.0,13.161,13.148,346.2412]
[1672884440854,78.8111836,13.16,13.148,119.0412]
[1672884441154,136.64245541,13.16,13.148,119.0412]
[1672884441342,20.0,13.158,13.143,57.1]
[1672884441552,20.0,13.157,13.143,118.9448]
[1672884441764,247.79324746,13.157,13.143,118.9448]
[1672884441985,170.75324746,13.156,13.143,118.9448]
[1672884442197,20.0,13.155,13.143,118.9448]
[1672884442410,20.0,13.154,13.143,118.9448]
[1672884442622,141.91217942,13.154,13.143,118.9448]
[1672884442819,20.0,13.152,13.143,118.9448]
[1672884443235,20.0,13.15,13.143,118.9448]
[1672884443663,20.0,13.15,13.143,430.9448]
[1672884443876,41.7811836,13.15,13.143,430.9448]
[1672884444084,156.68245541,13.15,13.143,430.9448]
[1672884444391,99.61245541,13.15,13.143,430.9448]
[1672884444599,99.61245541,13.15,13.143,118.9448]
[1672884445149,77.83127181,13.15,13.139,119.067]
[1672884445339,120.13099582,13.15,13.139,119.067]
[1672884445993,100.13099582,13.15,13.139,119.067]
[1672884447038,21.7811836,13.149,13.139,119.067]
[1672884448302,21.7811836,13.149,13.14,20.0]
[1672884449453,21.7811836,13.149,13.139,119.067]
[1672884450197,21.7811836,13.149,13.14,20.0]
[1672884453647,21.7811836,13.149,13.139,119.067]
[1672884453872,21.7811836,13.149,13.14,20.0]
[1672884455114,21.7811836,13.149,13.139,119.067]
[1672884456161,20.0,13.148,13.135,108.2998]
[1672884456381,139.37972401,13.148,13.133,57.14]
[1672884456592,20.0,13.146,13.127,174.1882]
[1672884456808,20.0,13.145,13.128,20.0]
[1672884457011,20.0,13.144,13.128,247.2]
[1672884457226,41.7811836,13.144,13.13,227.2]
[1672884457433,21.7811836,13.143,13.13,227.2]
[1672884457645,21.7811836,13.143,13.131,304.35]
[1672884457860,21.7811836,13.143,13.135,312.0]
[1672884458576,122.96927964,13.145,13.135,312.0]
[1672884458800,122.96927964,13.145,13.136,20.0]
[1672884458995,122.96927964,13.145,13.135,312.0]
[1672884459629,122.96927964,13.145,13.136,20.0]
[1672884460583,21.7811836,13.144,13.136,20.0]
[1672884460913,57.07,13.151,13.136,20.0]
[1672884461220,20.0,13.155,13.138,20.0]
[1672884461628,21.7811836,13.151,13.14,20.0]
[1672884462272,21.7811836,13.151,13.138,304.32]
[1672884462785,21.7811836,13.151,13.138,247.2]
[1672884463513,57.06,13.152,13.138,247.2]
[1672884463723,57.06,13.153,13.138,247.2]
[1672884463948,78.8411836,13.153,13.138,247.2]
[1672884464268,134.25271108,13.153,13.14,20.0]
[1672884465113,134.25271108,13.153,13.14,332.0]
[1672884466903,134.25271108,13.153,13.14,559.2]
[1672884467639,134.25271108,13.153,13.14,312.0]
[1672884467836,68.84106804,13.152,13.14,312.0]
[1672884468052,20.0,13.151,13.14,312.0]
[1672884468365,77.19271108,13.15,13.14,312.0]
[1672884468816,134.26271108,13.149,13.14,312.0]
[1672884469205,21.7811836,13.148,13.14,312.0]
[1672884470603,21.7811836,13.148,13.14,539.2]
[1672884470808,38.63374793,13.151,13.14,539.2]
[1672884471020,20.0,13.155,13.136,115.5306]
[1672884471021,78.8311836,13.155,13.141,284.31]
[1672884471234,20.0,13.154,13.142,20.0]
[1672884471551,20.0,13.154,13.144,20.0]
[1672884472804,20.0,13.154,13.144,247.2]
[1672884473018,20.0,13.154,13.145,20.0]
[1672884473423,55.41152748,13.155,13.145,20.0]
[1672884473635,78.8111836,13.159,13.148,20.0]
[1672884473862,21.7811836,13.159,13.148,20.0]
[1672884474073,21.7811836,13.159,13.148,559.2]
[1672884475555,77.19271108,13.159,13.148,559.2]
[1672884475737,21.7811836,13.159,13.148,559.2]
[1672884476389,21.7811836,13.159,13.148,668.5101]
[1672884477042,21.7811836,13.159,13.149,20.0]
[1672884480260,21.7811836,13.159,13.149,559.2]
[1672884480863,21.7811836,13.159,13.149,539.2]
[1672884482955,55.41152748,13.158,13.15,227.2]
[1672884483173,56.99,13.169,13.152,247.2]
[1672884483385,21.7811836,13.167,13.153,20.0]
[1672884483604,21.7811836,13.167,13.153,57.06]
[1672884483605,20.0,13.166,13.153,57.06]
[1672884483820,20.0,13.165,13.15,20.0]
[1672884484012,20.0,13.164,13.15,20.0]
[1672884484223,98.7911836,13.164,13.15,20.0]
[1672884484447,20.0,13.163,13.15,20.0]
[1672884484666,41.7811836,13.163,13.15,20.0]
[1672884484878,21.7811836,13.162,13.15,20.0]
[1672884485603,20.0,13.16,13.148,109.3101]
[1672884486014,21.7811836,13.16,13.15,312.0]
[1672884486445,57.03,13.159,13.15,312.0]
[1672884486659,78.8111836,13.16,13.15,312.0]
[1672884486860,21.7811836,13.159,13.15,312.0]
[1672884487185,78.8111836,13.159,13.15,312.0]
[1672884487377,21.7811836,13.159,13.15,312.0]
[1672884487593,57.04,13.158,13.151,20.0]
[1672884487797,21.7811836,13.159,13.151,20.0]
[1672884487798,78.8111836,13.159,13.151,20.0]
[1672884488002,21.7811836,13.159,13.151,20.0]
[1672884488548,21.7811836,13.162,13.151,20.0]
[1672884489379,21.7811836,13.162,13.149,57.07]
[1672884489694,57.02,13.161,13.148,109.3101]
[1672884490109,21.7811836,13.16,13.148,109.3101]
[1672884490318,20.0,13.159,13.148,109.3101]
[1672884490539,57.03,13.159,13.148,109.3101]
[1672884490750,78.8111836,13.159,13.148,109.3101]
[1672884491175,21.7811836,13.159,13.148,109.3101]
[1672884492061,21.7811836,13.159,13.149,20.0]
[1672884492353,21.7811836,13.159,13.152,20.0]
[1672884492966,21.7811836,13.159,13.151,312.0]
[1672884493159,21.7811836,13.159,13.148,109.3101]
[1672884493378,21.7811836,13.159,13.149,20.0]
[1672884494015,78.8111836,13.159,13.149,20.0]
[1672884494212,21.7811836,13.159,13.149,20.0]
[1672884494424,57.01,13.163,13.149,20.0]
[1672884494630,57.01,13.163,13.148,336.5101]
[1672884494631,79.84326844,13.163,13.148,336.5101]
[1672884494956,113.33672285,13.163,13.149,20.0]
[1672884495165,155.26616199,13.163,13.149,20.0]
[1672884496229,155.26616199,13.163,13.149,559.2]
[1672884498831,155.26616199,13.163,13.149,616.27]
[1672884499572,98.25616199,13.163,13.149,616.27]
[1672884499783,155.26616199,13.163,13.149,369.07]
[1672884499994,20.0,13.162,13.149,312.0]
[1672884500238,155.26616199,13.163,13.15,20.0]
[1672884500536,79.85326844,13.161,13.15,20.0]
[1672884500733,22.83326844,13.161,13.15,20.0]
[1672884501062,57.02,13.162,13.15,20.0]
[1672884501063,22.83326844,13.16,13.15,20.0]
[1672884503694,22.83326844,13.16,13.149,227.2]
[1672884504552,22.83326844,13.16,13.15,20.0]
[1672884506092,75.42289355,13.163,13.151,227.2]
[1672884506093,41.92943914,13.163,13.151,227.2]
[1672884506305,41.92943914,13.163,13.152,20.0]
[1672884506635,20.0,13.164,13.152,20.0]
[1672884506817,20.0,13.166,13.155,20.0]
[1672884507246,77.0,13.166,13.155,20.0]
[1672884508195,77.0,13.166,13.154,20.0]
[1672884508410,110.49345441,13.166,13.154,20.0]
[1672884508625,77.0,13.166,13.154,20.0]
[1672884509030,20.0,13.166,13.154,20.0]
[1672884509240,20.0,13.167,13.154,20.0]
[1672884509767,90.49345441,13.166,13.154,20.0]
[1672884509985,57.0,13.166,13.154,20.0]
[1672884510195,20.0,13.165,13.157,20.0]
[1672884510938,20.0,13.167,13.156,227.2]
[1672884511145,20.0,13.167,13.157,227.2]
[1672884511345,57.0,13.166,13.158,20.0]
[1672884511553,20.0,13.165,13.157,227.2]
[1672884512289,20.0,13.165,13.153,247.2]
[1672884512510,56.97,13.172,13.155,247.2]
[1672884512919,56.97,13.173,13.157,227.2]
[1672884513460,33.49345441,13.172,13.158,20.0]
[1672884513664,33.49345441,13.172,13.159,227.2]
[1672884514072,33.49345441,13.172,13.161,312.0]
[1672884514296,56.97,13.173,13.161,539.2]
[1672884514501,56.97,13.173,13.162,20.0]
[1672884515456,108.6035,13.174,13.164,20.0]
[1672884515667,20.0,13.173,13.163,227.2]
[1672884516497,20.0,13.173,13.163,20.0]
[1672884517550,20.0,13.173,13.162,20.0]
[1672884518178,20.0,13.172,13.16,114.7972]
[1672884518386,76.97,13.172,13.16,114.7972]
[1672884518593,100.73284601,13.171,13.16,114.7972]
[1672884518813,20.0,13.17,13.16,114.7972]
[1672884519030,113.76678775,13.17,13.16,426.7972]
[1672884519243,40.07959423,13.169,13.16,426.7972]
[1672884519764,56.99,13.168,13.16,426.7972]
[1672884520185,97.06959423,13.168,13.16,426.7972]
[1672884521243,40.07959423,13.168,13.16,426.7972]
[1672884523055,40.07959423,13.168,13.16,312.0]
[1672884524926,40.07959423,13.168,13.161,20.0]
[1672884525549,40.07959423,13.168,13.16,312.0]
[1672884525961,40.07959423,13.168,13.16,539.2]
[1672884526502,56.98,13.171,13.161,20.0]
[1672884526919,40.07959423,13.172,13.161,20.0]
[1672884528817,56.97,13.174,13.162,20.0]
[1672884529124,30.373872,13.175,13.164,20.0]
[1672884529534,30.373872,13.175,13.166,227.2]
[1672884529744,30.373872,13.175,13.167,20.0]
[1672884529964,30.373872,13.175,13.167,77.0]
[1672884530171,30.373872,13.175,13.167,57.0]
[1672884530373,56.97,13.174,13.16,172.2588]
[1672884530585,20.0,13.172,13.16,115.2288]
[1672884531021,76.97,13.172,13.16,115.2288]
[1672884531218,56.97,13.172,13.161,227.2]
[1672884531453,56.97,13.172,13.162,20.0]
[1672884531758,56.97,13.172,13.164,312.0]